fUST/lending_fUST_20241126
["ID","MTS","AMOUNT","RATE_DAILY","PERIOD"]
[343314837,1732573840015,-500.0,0.000255,2]
[343314838,1732573840023,-2707.81,0.00025624,2]
[343314839,1732573840033,-545.18,0.00025624,2]
[343314840,1732573840042,-151.0,0.00025666,7]
[343314841,1732573840051,-500.0,0.00025715,2]
[343314842,1732573840061,-500.0,0.00025715,2]
[343314843,1732573840070,-780.14,0.00025715,2]
[343314844,1732573840080,-492.52,0.00025715,2]
[343314845,1732573840089,-500.0,0.00025795,2]
[343314846,1732573840099,-299.94865362,0.00025795,2]
[343314847,1732573840108,-500.0,0.00025795,2]
[343314848,1732573840117,-150.17,0.00025795,2]
[343314849,1732573840127,-150.17,0.00025795,2]
[343314850,1732573840135,-150.17,0.00025795,2]
[343314851,1732573840145,-150.17,0.00025795,2]
[343314852,1732573840154,-500.0,0.00025795,2]
[343314853,1732573840163,-500.0,0.00025795,2]
[343314854,1732573840173,-500.0,0.00025795,2]
[343314855,1732573840186,-150.17,0.00025795,2]
[343314856,1732573840199,-151.83351094,0.00025795,2]
[343314857,1732573840208,-150.17,0.00025795,2]
[343314858,1732573840217,-2707.81,0.00025898,2]
[343314859,1732573840226,-545.18,0.00025898,2]
[343314860,1732573840236,-361.38295421,0.00025989,2]
[343314862,1732573840245,-500.0,0.00025989,2]
[343314864,1732573840254,-780.14,0.00025989,2]
[343314866,1732573840264,-994.81873798,0.00026,2]
[343314868,1732573840273,-1000.5,0.00026,31]
[343314870,1732573840282,-1000.5,0.00026,31]
[343314872,1732573840291,-1000.5,0.00026,31]
[343314873,1732573840300,-1000.5,0.00026,31]
[343314874,1732573840310,-1000.5,0.00026,31]
[343314875,1732573840319,-1000.5,0.00026,31]
[343314876,1732573840329,-150.5,0.00026,31]
[343314877,1732573840338,-151.9,0.00026,31]
[343314878,1732573840348,-1687.98491965,0.00026,30]
[343314879,1732573840357,-1000.0,0.00026048,2]
[343314880,1732573840366,-587.0,0.00026048,2]
[343314881,1732573840375,-500.0,0.00026069,2]
[343314882,1732573840384,-653.92026337,0.00026069,2]
[343314883,1732573840394,-216.92743642,0.00026069,2]
[343314884,1732573840403,-857.42463327,0.00026069,2]
[343314885,1732573840412,-500.0,0.00026069,2]
[343314886,1732573840422,-500.0,0.00026069,2]
[343314887,1732573840434,-154.5883629,0.00026069,2]
[343314888,1732573840444,-609.05595058,0.00026086,2]
[343314889,1732573840453,-2707.81,0.00026172,2]
[343314890,1732573840462,-545.18,0.00026172,2]
[343314891,1732573840471,-497.06,0.00026263,2]
[343314892,1732573840481,-780.14,0.00026263,2]
[343314893,1732573840490,-500.0,0.00026343,2]
[343314894,1732573840500,-500.0,0.00026343,2]
[343314895,1732573840509,-500.0,0.00026343,2]
[343314896,1732573840519,-2707.81,0.00026446,2]
[343314897,1732573840528,-545.18,0.00026446,2]
[343314898,1732573840537,-7458.94652043,0.0002649,2]
[343314899,1732573840547,-151.0,0.00026515,7]
[343314900,1732573840556,-780.14,0.00026537,2]
[343314901,1732573840566,-151.0,0.00026537,7]
[343314902,1732573840575,-500.0,0.00026617,2]
[343314903,1732573840584,-500.0,0.00026617,2]
[343314904,1732573840594,-500.0,0.00026617,2]
[343314905,1732573840603,-151.0,0.00026618,7]
[343314906,1732573840612,-518.357031,0.00026618,7]
[343314907,1732573840621,-518.357031,0.00026618,7]
[343314908,1732573840630,-531.0,0.00026618,2]
[343314909,1732573840640,-1109.0,0.00026618,2]
[343314910,1732573840649,-2379.0,0.00026618,2]
[343314911,1732573840658,-233.0,0.00026695,2]
[343314912,1732573840667,-2707.81,0.0002672,2]
[343314913,1732573840676,-545.18,0.0002672,2]
[343314914,1732573840688,-151.0,0.00026811,7]
[343314915,1732573840697,-151.0,0.00026811,7]
[343314916,1732573840706,-780.14,0.00026811,2]
[343314917,1732573840715,-500.0,0.00026891,2]
[343314918,1732573840725,-500.0,0.00026891,2]
[343314919,1732573840734,-500.0,0.00026891,2]
[343314920,1732573840743,-151.0,0.00026891,7]
[343314921,1732573840753,-609.05595058,0.00026911,2]
[343314922,1732573840762,-150.128,0.00026981,2]
[343314923,1732573840771,-150.0,0.00026981,2]
[343314924,1732573840781,-2707.81,0.00026994,2]
[343314925,1732573840790,-545.18,0.00026994,2]
[343314926,1732573840800,-243.92162865,0.0002705,2]
[343314927,1732573840809,-780.14,0.00027085,2]
[343314928,1732573840828,-150.0,0.00027101,2]
[343314929,1732573840839,-500.0,0.00027165,2]
[343314930,1732573840848,-150.17,0.00027165,2]
[343314931,1732573840858,-500.0,0.00027165,2]
[343314932,1732573840869,-500.0,0.00027165,2]
[343314933,1732573840882,-2707.81,0.00027268,2]
[343314934,1732573840891,-545.18,0.00027268,2]
[343314935,1732573840901,-780.14,0.00027359,2]
[343314936,1732573840911,-500.0,0.00027397,2]
[343314937,1732573840921,-500.0,0.00027397,2]
[343314938,1732573840933,-500.0,0.00027406,5]
[343314939,1732573840943,-500.55528528,0.00027406,5]
[343314940,1732573840953,-500.0,0.00027439,2]
[343314941,1732573840966,-500.0,0.00027439,2]
[343314942,1732573840976,-703.29584049,0.00027439,2]
[343314943,1732573840986,-44387.57504855,0.000275,2]
[343314944,1732573840996,-151.0,0.000275,7]
[343314945,1732573841005,-151.0,0.000275,7]
[343314946,1732573841015,-151.0,0.000275,7]
[343314947,1732573841024,-151.0,0.000275,7]
[343314948,1732573841034,-2707.81,0.00027542,2]
[343314949,1732573841043,-545.18,0.00027542,2]
[343314950,1732573841052,-168.036592,0.00027542,7]
[343314951,1732573841062,-42369.15874106,0.00027581,2]
[343314952,1732573841071,-151.0,0.00027581,7]
[343314953,1732573841081,-151.0,0.00027581,7]
[343314954,1732573841091,-1209.962585,0.00027581,7]
[343314955,1732573841101,-1209.962585,0.00027581,7]
[343314956,1732573841111,-575.949479,0.00027581,7]
[343314957,1732573841121,-575.949479,0.00027581,7]
[343314958,1732573841130,-151.0,0.00027581,7]
[343314959,1732573841140,-151.0,0.00027581,7]
[343314960,1732573841149,-151.0,0.00027581,7]
[343314961,1732573841159,-151.0,0.00027581,7]
[343314962,1732573841169,-518.357031,0.00027581,7]
[343314963,1732573841180,-518.357031,0.00027581,7]
[343314964,1732573841191,-166.268121,0.00027611,7]
[343314965,1732573841201,-187.87188,0.00027617,2]
[343314966,1732573841210,-780.14,0.00027633,2]
[343314967,1732573841219,-500.0,0.00027671,2]
[343314968,1732573841229,-754.0959571,0.00027713,2]
[343314969,1732573841238,-500.0,0.00027713,2]
[343314970,1732573841248,-609.05595058,0.00027735,2]
[343314971,1732573841257,-2707.81,0.00027816,2]
[343314972,1732573841266,-545.18,0.00027816,2]
[343314973,1732573841275,-8748.1038829,0.00027822,2]
[343314974,1732573841285,-151.0,0.00027852,7]
[343314975,1732573841294,-780.14,0.00027907,2]
[343314976,1732573841303,-500.0,0.00027945,2]
[343314977,1732573841313,-1000.0,0.00027954,5]
[343314978,1732573841323,-500.0,0.00027987,2]
[343314979,1732573841332,-32012.52696579,0.0002799,2]
[343314980,1732573841342,-1168.85067991,0.0002799,7]
[343314981,1732573841351,-153.502551,0.0002799,7]
[343314982,1732573841360,-151.0,0.0002799,7]
[343314983,1732573841375,-151.0,0.0002799,7]
[343314984,1732573841391,-5976.00562308,0.00027995,7]
[343314985,1732573841401,-52743.38895797,0.00028,7]
[343314986,1732573841410,-201760.38989801,0.00028,30]
[343314987,1732573841419,-500.0,0.00028,4]
[343314988,1732573841430,-151.0,0.00028,7]
[343314989,1732573841440,-151.0,0.00028,7]
[343314990,1732573841450,-151.0,0.00028,7]
[343314991,1732573841459,-150.0,0.00028,2]
[343314992,1732573841469,-151.0,0.00028,7]
[343314993,1732573841479,-151.0,0.00028,7]
[343314994,1732573841489,-152.143134,0.00028,7]
[343314995,1732573841499,-154.497251,0.00028,7]
[343314996,1732573841509,-1209.962585,0.00028,7]
[343314997,1732573841519,-1209.962585,0.00028,7]
[343314998,1732573841528,-1209.962585,0.00028,7]
[343314999,1732573841538,-1209.962585,0.00028,7]
[343315000,1732573841548,-575.949479,0.00028,7]
[343315001,1732573841558,-575.949479,0.00028,7]
[343315002,1732573841567,-575.949479,0.00028,7]
[343315003,1732573841577,-575.949479,0.00028,7]
[343315004,1732573841587,-151.0,0.00028,7]
[343315005,1732573841596,-290.137525,0.00028,7]
[343315006,1732573841606,-151.0,0.00028,7]
[343315007,1732573841615,-151.0,0.00028,7]
[343315008,1732573841625,-151.0,0.00028,7]
[343315009,1732573841634,-151.0,0.00028,7]
[343315010,1732573841644,-151.0,0.00028,7]
[343315011,1732573841653,-151.0,0.00028,7]
[343315012,1732573841663,-151.0,0.00028,7]
[343315013,1732573841672,-295.73011,0.00028,7]
[343315014,1732573841684,-518.357031,0.00028,7]
[343315015,1732573841694,-518.357031,0.00028,7]
[343315016,1732573841703,-518.357031,0.00028,7]
[343315017,1732573841712,-518.357031,0.00028,7]
[343315018,1732573841722,-2707.81,0.0002809,2]
[343315019,1732573841731,-545.18,0.0002809,2]
[343315020,1732573841741,-780.14,0.00028181,2]
[343315021,1732573841752,-231.95,0.000282,31]
[343315022,1732573841858,-231.95,0.000282,31]
[343315023,1732573841868,-231.95,0.000282,31]
[343315024,1732573841878,-231.95,0.000282,31]
[343315025,1732573841890,-231.95,0.000282,31]
[343315026,1732573841904,-231.95,0.000282,31]
[343315027,1732573841913,-231.95,0.000282,31]
[343315028,1732573841922,-231.95,0.000282,31]
[343315029,1732573841934,-231.95,0.000282,31]
[343315030,1732573841943,-231.95,0.000282,31]
[343315031,1732573841952,-231.95,0.000282,31]
[343315032,1732573841961,-231.95,0.000282,31]
[343315033,1732573841970,-500.0,0.00028219,2]
[343315034,1732573841981,-500.0,0.00028261,2]
[343315035,1732573841990,-10000.0,0.00028275,3]
[343315036,1732573841999,-823.0,0.00028304,2]
[343315037,1732573842008,-2707.93727014,0.00028364,2]
[343315038,1732573842017,-545.34558548,0.00028364,2]
[343315039,1732573842026,-780.14,0.00028455,2]
[343315040,1732573842035,-500.0,0.00028493,2]
[343315041,1732573842044,-500.0,0.000285,2]
[343315042,1732573842054,-200.14758426,0.00028535,2]
[343315043,1732573842063,-500.0,0.00028535,2]
[343315044,1732573842073,-609.05595058,0.0002856,2]
[343315045,1732573842082,-231.95,0.000286,31]
[343315046,1732573842092,-231.95,0.000286,31]
[343315047,1732573842101,-231.95,0.000286,31]
[343315048,1732573842111,-231.95,0.000286,31]
[343315049,1732573842123,-231.95,0.000286,31]
[343315050,1732573842132,-231.95,0.000286,31]
[343315051,1732573842142,-231.95,0.000286,31]
[343315052,1732573842151,-231.95,0.000286,31]
[343315053,1732573842160,-231.95,0.000286,31]
[343315054,1732573842170,-231.95,0.000286,31]
[343315055,1732573842180,-231.95,0.000286,31]
[343315056,1732573842189,-231.95,0.000286,31]
[343315057,1732573842199,-231.95,0.000286,31]
[343315058,1732573842209,-231.95,0.000286,31]
[343315059,1732573842218,-231.95,0.000286,31]
[343315060,1732573842226,-231.95,0.000286,31]
[343315061,1732573842236,-231.95,0.000286,31]
[343315062,1732573842245,-231.95,0.000286,31]
[343315063,1732573842254,-231.95,0.000286,31]
[343315064,1732573842263,-231.95,0.000286,31]
[343315065,1732573842272,-231.95,0.000286,31]
[343315066,1732573842281,-231.95,0.000286,31]
[343315067,1732573842290,-231.95,0.000286,31]
[343315068,1732573842299,-231.95,0.000286,31]
[343315069,1732573842308,-157.59038912,0.00028616,7]
[343315070,1732573842317,-600.0,0.00028626,2]
[343315071,1732573842326,-780.14,0.00028729,2]
[343315072,1732573842334,-500.0,0.00028767,2]
[343315073,1732573842343,-500.0,0.00028767,4]
[343315074,1732573842352,-500.0,0.00028809,2]
[343315075,1732573842362,-231.95,0.000289,31]
[343315076,1732573842371,-231.95,0.000289,31]
[343315077,1732573842380,-231.95,0.000289,31]
[343315078,1732573842390,-231.95,0.000289,31]
[343315079,1732573842399,-231.95,0.000289,31]
[343315080,1732573842408,-231.95,0.000289,31]
[343315081,1732573842418,-231.95,0.000289,31]
[343315082,1732573842427,-231.95,0.000289,31]
[343315083,1732573842438,-231.95,0.000289,31]
[343315084,1732573842447,-231.95,0.000289,31]
[343315085,1732573842456,-231.95,0.000289,31]
[343315086,1732573842465,-231.95,0.000289,31]
[343315087,1732573842475,-231.95,0.000289,31]
[343315088,1732573842484,-231.95,0.000289,31]
[343315089,1732573842493,-231.95,0.000289,31]
[343315090,1732573842502,-231.95,0.000289,31]
[343315091,1732573842511,-231.95,0.000289,31]
[343315092,1732573842520,-231.95,0.000289,31]
[343315093,1732573842530,-231.95,0.000289,31]
[343315094,1732573842539,-231.95,0.000289,31]
[343315095,1732573842549,-231.95,0.000289,31]
[343315096,1732573842558,-231.95,0.000289,31]
[343315097,1732573842567,-231.95,0.000289,31]
[343315098,1732573842576,-231.95,0.000289,31]
[343315099,1732573842586,-600.0,0.00028924,2]
[343315100,1732573842595,-500.94871474,0.00028956,5]
[343315101,1732573842604,-151.0,0.00029,15]
[343315102,1732573842614,-780.14,0.00029003,2]
[343315103,1732573842623,-500.0,0.00029041,2]
[343315104,1732573842632,-500.0,0.00029083,2]
[343315105,1732573842641,-10000.0,0.0002909,3]
[343315106,1732573842651,-330.0,0.000292,2]
[343315107,1732573842660,-600.0,0.00029223,2]
[343315108,1732573842669,-151.0,0.00029276,7]
[343315109,1732573842678,-151.0,0.00029276,7]
[343315110,1732573842688,-213.881276,0.00029276,7]
[343315111,1732573842698,-780.30029836,0.00029276,2]
[343315112,1732573842708,-151.0,0.000293,7]
[343315113,1732573842718,-231.95,0.000293,31]
[343315114,1732573842727,-231.95,0.000293,31]
[343315115,1732573842736,-231.95,0.000293,31]
[343315116,1732573842746,-231.95,0.000293,31]
[343315117,1732573842755,-231.95,0.000293,31]
[343315118,1732573842765,-231.95,0.000293,31]
[343315119,1732573842774,-231.95,0.000293,31]
[343315120,1732573842783,-231.95,0.000293,31]
[343315121,1732573842793,-231.95,0.000293,31]
[343315122,1732573842802,-231.95,0.000293,31]
[343315123,1732573842811,-231.95,0.000293,31]
[343315124,1732573842820,-231.95,0.000293,31]
[343315125,1732573842830,-231.95,0.000293,31]
[343315126,1732573842839,-231.95,0.000293,31]
[343315127,1732573842848,-231.95,0.000293,31]
[343315128,1732573842857,-231.95,0.000293,31]
[343315129,1732573842866,-231.95,0.000293,31]
[343315130,1732573842877,-231.95,0.000293,31]
[343315131,1732573842888,-231.95,0.000293,31]
[343315132,1732573842897,-231.95,0.000293,31]
[343315133,1732573842906,-231.95,0.000293,31]
[343315134,1732573842917,-231.95,0.000293,31]
[343315135,1732573842926,-231.95,0.000293,31]
[343315136,1732573842938,-231.95,0.000293,31]
[343315137,1732573842946,-518.357031,0.000293,7]
[343315138,1732573842956,-518.357031,0.000293,7]
[343315139,1732573842965,-500.0,0.00029315,2]
[343315140,1732573842976,-500.0,0.00029357,2]
[343315141,1732573842985,-609.05595058,0.00029384,2]
[343315143,1732573842994,-1142.69,0.000294,2]
[343315145,1732573843003,-6303.49431398,0.000294,7]
[343315147,1732573843013,-1209.962585,0.000294,7]
[343315149,1732573843022,-1209.962585,0.000294,7]
[343315150,1732573843031,-575.949479,0.000294,7]
[343315152,1732573843041,-575.949479,0.000294,7]
[343315153,1732573843051,-151.0,0.000294,7]
[343315155,1732573843060,-500.0,0.00029473,5]
[343315156,1732573843069,-555.7017925,0.00029473,5]
[343315159,1732573843078,-552.38929919,0.00029473,5]
[343315160,1732573843087,-1209.962585,0.00029482,7]
[343315161,1732573843097,-1209.962585,0.00029482,7]
[343315162,1732573843106,-1209.962585,0.00029482,7]
[343315163,1732573843115,-1209.962585,0.00029482,7]
[343315166,1732573843124,-1209.962585,0.00029482,7]
[343315167,1732573843134,-1209.962585,0.00029482,7]
[343315168,1732573843143,-1209.962585,0.00029482,7]
[343315169,1732573843152,-1209.962585,0.00029482,7]
[343315170,1732573843161,-1209.962585,0.00029482,7]
[343315171,1732573843171,-1209.962585,0.00029482,7]
[343315172,1732573843183,-1209.962585,0.00029482,7]
[343315173,1732573843195,-1209.962583,0.00029482,7]
[343315174,1732573843205,-575.949479,0.00029483,7]
[343315175,1732573843214,-575.949479,0.00029483,7]
[343315176,1732573843223,-575.949479,0.00029483,7]
[343315177,1732573843233,-575.949479,0.00029483,7]
[343315178,1732573843243,-575.949479,0.00029483,7]
[343315179,1732573843252,-575.949479,0.00029483,7]
[343315180,1732573843262,-575.949479,0.00029483,7]
[343315181,1732573843271,-575.949479,0.00029483,7]
[343315182,1732573843281,-575.949479,0.00029483,7]
[343315183,1732573843290,-575.949479,0.00029483,7]
[343315184,1732573843299,-575.949479,0.00029483,7]
[343315186,1732573843309,-575.949476,0.00029483,7]
[343315187,1732573843318,-151.0,0.00029483,7]
[343315188,1732573843327,-151.0,0.00029483,7]
[343315189,1732573843336,-151.0,0.00029483,7]
[343315190,1732573843345,-151.0,0.00029483,7]
[343315191,1732573843354,-151.0,0.00029483,7]
[343315192,1732573843363,-151.0,0.00029483,7]
[343315193,1732573843373,-151.0,0.00029484,7]
[343315194,1732573843382,-151.0,0.00029484,7]
[343315195,1732573843391,-151.0,0.00029484,7]
[343315196,1732573843400,-151.0,0.00029484,7]
[343315198,1732573843410,-151.0,0.00029484,7]
[343315200,1732573843419,-151.0,0.00029484,7]
[343315202,1732573843428,-151.0,0.00029484,7]
[343315204,1732573843438,-292.586214,0.00029484,7]
[343315205,1732573843447,-518.357031,0.00029484,7]
[343315207,1732573843457,-518.357031,0.00029484,7]
[343315208,1732573843466,-518.357031,0.00029484,7]
[343315210,1732573843475,-518.357031,0.00029484,7]
[343315211,1732573843485,-518.357031,0.00029484,7]
[343315213,1732573843494,-518.357031,0.00029484,7]
[343315214,1732573843508,-518.357031,0.00029484,7]
[343315216,1732573843518,-518.357031,0.00029484,7]
[343315217,1732573843527,-518.357031,0.00029484,7]
[343315218,1732573843536,-518.357023,0.00029484,7]
[343315219,1732573843545,-151.0,0.00029497,7]
[343315220,1732573843556,-151.0,0.00029497,7]
[343315221,1732573843565,-151.0,0.00029497,7]
[343315222,1732573843574,-1396.13918022,0.00029499,12]
[343315223,1732573843584,-151.0,0.00029508,7]
[343315224,1732573843593,-151.0,0.00029508,7]
[343315226,1732573843603,-151.0,0.00029508,7]
[343315227,1732573843612,-151.865444,0.00029508,7]
[343315228,1732573843621,-151.0,0.00029508,7]
[343315229,1732573843630,-151.0,0.00029508,7]
[343315230,1732573843640,-151.0,0.00029508,7]
[343315231,1732573843649,-151.0,0.00029508,7]
[343315232,1732573843658,-151.0,0.00029508,7]
[343315233,1732573843667,-151.0,0.00029508,7]
[343315234,1732573843677,-151.0,0.00029508,7]
[343315235,1732573843689,-151.0,0.00029508,7]
[343315236,1732573843698,-151.0,0.00029508,7]
[343315237,1732573843708,-151.0,0.00029508,7]
[343315238,1732573843717,-151.0,0.00029508,7]
[343315239,1732573843726,-151.0,0.00029508,7]
[343315240,1732573843735,-273.81793,0.00029508,7]
[343315241,1732573843745,-602.18249524,0.00029521,2]
[343315242,1732573843754,-150.17,0.00029526,10]
[343315243,1732573843764,-150.17,0.00029526,10]
[343315244,1732573843773,-150.17,0.00029526,10]
[343315245,1732573843782,-299.81034311,0.00029526,10]
[343315247,1732573843791,-288.182,0.00029552,2]
[343315249,1732573843801,-914.01706257,0.00029589,2]
[343315251,1732573843810,-332.96333929,0.00029595,2]
[343315253,1732573843819,-332.96333929,0.00029595,2]
[343315254,1732573843828,-1951701.80905275,0.00029595,10]
[343315255,1732573843888,-267.57,0.00027571,10]
[343315256,1732573843898,-9044.5936,0.00029595,10]
[343315257,1732573843938,-436.38011,0.00029595,10]
[343315258,1732573843950,-5600.8,0.00029595,10]
[343315259,1732573844059,-747.64799999,0.00029595,10]
[343315260,1732573844070,-6697.8485639,0.00029595,10]
[343315261,1732573844082,-8452.9378872,0.00029595,10]
[343315262,1732573844093,-16838.58828942,0.00029595,10]
[343315297,1732573845996,-257467.67388061,0.00029595,10]
[343315298,1732573846008,-9330.0,0.00029595,10]
[343315307,1732573846322,-240.14905662,0.00029595,10]
[343315308,1732573921309,153.0,0.00021391,2]
[343315310,1732574039696,190.237544,0.00013973,2]
[343315311,1732574088873,780.316008,0.00021716,2]
[343315312,1732574158565,1656.9223125,0.00021756,2]
[343315313,1732574241099,2343.97890717,0.00021962,2]
[343315314,1732574259161,908.44346722,0.00021961,2]
[343315316,1732574267722,165.312149,0.00021407,2]
[343315317,1732574322510,289.7282436,0.00021959,2]
[343315319,1732574455615,2050.98154373,0.00021962,2]
[343315473,1732574658586,3199.13925861,0.00021962,2]
[343315476,1732574748107,-160.0,0.00022,2]
[343315477,1732574748132,-210.52129162,0.00022048,2]
[343315478,1732574748152,-300.0,0.00022054,2]
[343315479,1732574748174,-300.0,0.00022054,2]
[343315480,1732574748196,-14443.0,0.00022054,2]
[343315481,1732574748217,-500.0,0.0002206,2]
[343315482,1732574748238,-500.0,0.0002206,2]
[343315483,1732574748261,-500.0,0.0002206,2]
[343315484,1732574748289,-500.0,0.0002206,2]
[343315485,1732574748312,-500.0,0.0002206,2]
[343315486,1732574748333,-500.0,0.0002206,2]
[343315487,1732574748354,-474.29101641,0.0002206,2]
[343315488,1732574748375,-500.0,0.0002206,2]
[343315489,1732574748398,-1232.90752744,0.0002206,2]
[343315490,1732574748421,-779.7,0.0002206,2]
[343315491,1732574748442,-500.0,0.0002206,2]
[343315492,1732574748464,-500.0,0.0002206,2]
[343315493,1732574748486,-500.0,0.0002206,2]
[343315494,1732574748508,-500.0,0.0002206,2]
[343315495,1732574748531,-500.0,0.0002206,2]
[343315496,1732574748553,-500.0,0.00022061,2]
[343315497,1732574748576,-500.0,0.00022061,2]
[343315498,1732574748598,-500.0,0.00022061,2]
[343315499,1732574748620,-500.0,0.00022061,2]
[343315500,1732574748640,-500.0,0.00022061,2]
[343315501,1732574748663,-500.0,0.00022061,2]
[343315502,1732574748686,-500.0,0.00022061,2]
[343315503,1732574748707,-500.0,0.00022061,2]
[343315504,1732574748825,-500.0,0.00022061,2]
[343315505,1732574748850,-500.0,0.00022061,2]
[343315506,1732574748873,-500.0,0.00022061,2]
[343315507,1732574748897,-500.0,0.00022061,2]
[343315508,1732574748919,-500.0,0.00022061,2]
[343315509,1732574748944,-500.0,0.00022061,2]
[343315510,1732574748967,-500.0,0.00022061,2]
[343315511,1732574748990,-500.0,0.00022061,2]
[343315512,1732574749012,-500.0,0.00022061,2]
[343315513,1732574749037,-500.0,0.00022061,2]
[343315514,1732574749060,-500.0,0.00022061,2]
[343315515,1732574749082,-500.0,0.00022061,2]
[343315516,1732574749104,-500.0,0.00022061,2]
[343315517,1732574749129,-500.0,0.00022061,2]
[343315518,1732574749152,-500.0,0.00022061,2]
[343315519,1732574749175,-481.18,0.00022061,2]
[343315520,1732574749196,-500.0,0.00022061,2]
[343315521,1732574749218,-600.75492425,0.00022062,2]
[343315522,1732574749240,-500.0,0.00022062,2]
[343315523,1732574749266,-500.0,0.00022062,2]
[343315524,1732574749288,-500.0,0.00022062,2]
[343315525,1732574749310,-500.0,0.00022062,2]
[343315526,1732574749332,-500.0,0.00022062,2]
[343315527,1732574749354,-500.0,0.00022062,2]
[343315528,1732574749376,-500.0,0.00022062,2]
[343315529,1732574749398,-500.0,0.00022062,2]
[343315530,1732574749419,-500.0,0.00022062,2]
[343315531,1732574749441,-500.0,0.00022062,2]
[343315532,1732574749463,-200.0,0.00022062,2]
[343315533,1732574749485,-500.0,0.00022062,2]
[343315534,1732574749507,-500.0,0.00022062,2]
[343315535,1732574749529,-500.0,0.00022062,2]
[343315536,1732574749550,-500.0,0.00022062,2]
[343315537,1732574749570,-500.0,0.00022062,2]
[343315538,1732574749590,-500.0,0.00022062,2]
[343315539,1732574749612,-500.0,0.00022062,2]
[343315540,1732574749633,-507.01386928,0.00022062,2]
[343315541,1732574749653,-500.0,0.00022062,2]
[343315542,1732574749673,-500.0,0.00022062,2]
[343315543,1732574749693,-500.0,0.00022062,2]
[343315544,1732574749713,-500.0,0.00022062,2]
[343315545,1732574749734,-500.0,0.00022062,2]
[343315546,1732574749754,-500.0,0.00022062,2]
[343315547,1732574749776,-500.0,0.00022062,2]
[343315548,1732574749801,-500.0,0.00022062,2]
[343315549,1732574749822,-500.0,0.00022062,2]
[343315550,1732574749843,-171.8595185,0.00022062,2]
[343315551,1732574749863,-500.0,0.00022062,2]
[343315552,1732574749884,-480.0,0.00022062,2]
[343315553,1732574749904,-500.0,0.00022062,2]
[343315554,1732574749925,-500.0,0.00022062,2]
[343315555,1732574749945,-500.0,0.00022062,2]
[343315556,1732574749965,-500.0,0.00022062,2]
[343315557,1732574749986,-546.28,0.00022062,2]
[343315558,1732574750006,-500.0,0.00022062,2]
[343315559,1732574750028,-500.0,0.00022062,2]
[343315560,1732574750049,-500.0,0.00022062,2]
[343315561,1732574750072,-500.0,0.00022062,2]
[343315562,1732574750093,-500.0,0.00022062,2]
[343315563,1732574750116,-295.55726572,0.00022062,2]
[343315564,1732574750141,-500.0,0.00022062,2]
[343315565,1732574750163,-500.0,0.00022062,2]
[343315566,1732574750183,-500.0,0.00022062,2]